Cogmind - Beta 11 X7 @@@ ROGUE MODE // 2021.10.15 @ 00:22:01 Player: Runia Result: Destroyed by S-27 Virus with Autogun Performance ------------- Evolutions (4) 2000 Regions Visited (14) 2800 Robots Destroyed (200) 1000 Value Destroyed (7167) 7167 Prototype IDs (19) 380 Alien Tech Used (1) 200 Bonus (1998) 1998 TOTAL SCORE: 15545 Bonus ------- High Alert Combat Kills 619 Follower Combat Kills 712 Entered Garrisons 200 Used RIF Installer 500 Met Data Miner 300 Friendly Fire -333 Cogmind --------- Core Integrity 0/850 Matter 0/300 Energy 98/100 System Corruption 3% Temperature Cool (0) Movement Core (50) Location -6/Factory Parts ------- > --- POWER (1) -------- (None) > --- PROPULSION (5) --- (None) > --- UTILITY (6) ------ (None) > --- WEAPON (4) ------- (None) > --- INVENTORY (5) ---- Experimental Sensor Array Advanced Terrain Scanner Thief Drone Bay (3/3) Heavy Plasma Cannon Remote Datajack Peak State ------------ > --- POWER ------------ Light Fission Core > --- PROPULSION ------- Carbon-fiber Leg Carbon-fiber Leg Flexi-carbon Leg Flexi-carbon Leg Flexi-carbon Leg > --- UTILITY ---------- Advanced Heat Sink High-capacity Storage Unit Advanced Energy Well Experimental Sensor Array Improved Terrain Scan Processor Improved Medium Armor Plating > --- WEAPON ----------- Heavy Laser Force Rifle Phase Cannon Heavy Machine Gun > --- INVENTORY -------- Advanced Treads Advanced Terrain Scanner Advanced Targeting Computer Armor Integrity Analyzer Improved Medium Armor Plating Improved Medium Armor Plating Improved Medium Armor Plating Experimental Thermal Shield Relay Coupler [NC] Thief Drone Bay Proton Cannon Heavy Particle Cannon Gauss Rifle Gauss Rifle Coil Gun Coil Gun Coil Gun Mini Grenade Launcher Remote Datajack Great Maul [Rating: 83] Favorites ----------- Power Improved Deuterium Engine Engine Improved Deuterium Engine Power Core Light Fission Core Reactor Antimatter Reactor Propulsion Improved Titanium Leg Treads Armored Treads Leg Improved Titanium Leg Wheel Compact Wheel Utility High-capacity Storage Unit Device Makeshift Sensor Array Storage High-capacity Storage Unit Processor Improved Terrain Scan Processor Hackware Relay Coupler [NC] Protection Light Armor Plating Weapon Heavy Assault Rifle Energy Gun Heavy Laser Energy Cannon Proton Cannon Ballistic Gun Heavy Assault Rifle Ballistic Cannon Heavy Assault Cannon Launcher Grenade Launcher Special Weapon Remote Datajack Impact Weapon Great Maul Special Melee Weapon Improved Datajack Build | -11 -10 -10 -10 -9 -8 -8 -7 -7 -7 -7 -6 -6 -6 -6 ------- Run | Scr Mat Min Exi Min Mat Gar Fac Low Low Dat Pro Fac Was Fac Slots Evolved 8 | . . . . . 4 . 2 . . . . 2 . . Power . | . . . . . . . . . . . . . . . Propulsion 3 | . . . . . 1 . 1 . . . . 1 . . Utility 3 | . . . . . 2 . 1 . . . . . . . Weapon 2 | . . . . . 1 . . . . . . 1 . . Parts Attached 274 | 4 14 4 2 12 38 14 42 17 8 . 21 93 5 . Power 12 | . . . 1 1 1 . 3 1 . . . 5 . . Engine 9 | . . . 1 1 1 . 3 1 . . . 2 . . Core 1 | . . . . . . . . . . . . 1 . . Reactor 2 | . . . . . . . . . . . . 2 . . Propulsion 54 | 2 2 . . 2 10 2 8 1 1 . 6 19 1 . Treads 19 | 2 1 . . 2 9 2 2 . . . . . 1 . Leg 31 | . . . . . . . 6 1 1 . 6 17 . . Wheel 4 | . 1 . . . 1 . . . . . . 2 . . Hover . | . . . . . . . . . . . . . . . Flight . | . . . . . . . . . . . . . . . Utility 82 | 1 3 2 . 4 7 1 11 7 . . 5 37 4 . Device 35 | . . 1 . 1 3 . 4 4 . . 3 17 2 . Storage 10 | 1 2 . . . . . . . . . 2 5 . . Processor 6 | . . . . . 2 . 2 . . . . 1 1 . Hackware 2 | . . . . . . . 1 . . . . 1 . . Protection 29 | . 1 1 . 3 2 1 4 3 . . . 13 1 . Artifact . | . . . . . . . . . . . . . . . Weapon 126 | 1 9 2 1 5 20 11 20 8 7 . 10 32 . . Energy Gun 33 | . 5 1 . 1 7 . 4 3 4 . 4 4 . . Energy Cannon 7 | . . . . . . . . 1 . . . 6 . . Ballistic Gun 43 | 1 . . 1 3 7 6 8 1 . . 4 12 . . Ballistic Cannon 2 | . . . . . 1 . 1 . . . . . . . Launcher 30 | . 4 1 . 1 5 5 6 2 3 . 2 1 . . Special Weapon 3 | . . . . . . . . . . . . 3 . . Impact Weapon 7 | . . . . . . . . 1 . . . 6 . . Slashing Weapon . | . . . . . . . . . . . . . . . Piercing Weapon . | . . . . . . . . . . . . . . . Special Melee Weapon 1 | . . . . . . . 1 . . . . . . . Unidentified Prototypes 7 | . . 1 . 1 . . . 1 . . 2 1 1 . Parts Lost 45 | . . . . . 5 1 6 1 1 . 16 8 7 . Power 2 | . . . . . . . . . . . 1 1 . . Propulsion 18 | . . . . . 2 . 2 . 1 . 7 3 3 . Utility 11 | . . . . . . . 2 1 . . 4 2 2 . Weapon 14 | . . . . . 3 1 2 . . . 4 2 2 . Highest Loss Streak 7 | . . . . . 2 1 2 1 1 . 7 6 7 . Average Slot Usage (%) 92 | . 93 100 100 100 98 98 92 99 99 100 74 94 60 . Engine 7 | . 14 14 14 14 9 9 7 7 7 7 . 1 . . Treads 10 | . 26 14 14 14 19 27 11 . . . . . . . Leg 12 | . . . . . . . 17 29 27 28 19 25 17 . Wheel 3 | . 1 14 14 14 7 . . . . . . 2 . . Device 7 | . . . . . 8 . 3 16 14 14 14 13 6 . Storage 9 | . 14 14 14 14 9 9 7 7 7 7 12 7 4 . Processor 7 | . . . . . 9 18 17 7 7 7 7 8 11 . Protection 8 | . 8 14 14 14 9 9 6 7 14 14 1 6 2 . Energy Gun 9 | . 13 12 14 7 8 9 6 9 13 14 8 10 . . Ballistic Gun 12 | . 14 14 14 20 17 15 10 10 7 7 9 8 13 . Naked Turns 185 | . . . . . . . . . . . . . 51 134 Heaviest Build 91 | 13 52 53 54 61 68 66 80 80 73 73 73 91 84 . Greatest Support 91 | 40 40 16 16 16 60 60 80 77 77 72 72 91 66 3 Greatest Overweight (x) 6 | . 3 3 3 3 6 1 3 1 1 1 3 2 1 . Average Overweight (x) 1 | . . 3 3 3 4 . . . . 1 . . . . Largest Inventory Capacity 20 | 8 20 20 20 20 20 20 20 20 20 20 20 20 20 5 Average Capacity 19 | 5 13 20 20 20 20 20 20 20 20 20 19 20 15 5 Most Carried 20 | 5 15 20 20 20 20 20 20 20 20 20 20 20 20 5 Average Carried 18 | 1 11 18 19 19 19 19 19 18 19 20 14 19 15 5 Final Capacity 20 | 8 20 20 20 20 20 20 20 20 20 20 20 20 5 5 Final Carried 20 | 1 15 20 20 20 20 20 20 18 20 20 13 20 5 5 Class Distribution -------------------- 30% | Mutant 18% | Scavenger-Tank 11% | Scavenger-Mutant 11% | Scavenger-Skirmisher 8% | Skirmisher 6% | Tank 5% | Scavenger-Gunner 4% | Gunner Dominant Class ---------------- Mutant | -10/Materials Mutant | -10/Mines Mutant | -10/Exiles Mutant | -9/Mines Skirmisher | -8/Materials Gunner | -8/Garrison Scavenger-Tank | -7/Factory Scavenger-Mutant | -7/Lower Caves Tank | -7/Lower Caves Tank | -7/Data Miner Scavenger-Tank | -6/Proximity Caves Scavenger-Skirmisher | -6/Factory Mutant | -6/Waste Mutant | -6/Factory Resources | -11 -10 -10 -10 -9 -8 -8 -7 -7 -7 -7 -6 -6 -6 -6 ----------- Run | Scr Mat Min Exi Min Mat Gar Fac Low Low Dat Pro Fac Was Fac Matter Collected 4950 | 258 242 31 64 270 709 468 897 256 244 . 244 1267 . . Remotely . | . . . . . . . . . . . . . . . Salvage Created 7393 | 63 422 20 157 455 1235 599 1306 226 276 . 209 2425 . . Parts 377 | . 34 6 6 33 67 34 68 7 19 . 10 93 . . Haulers Intercepted 5 | . 2 . . . 2 . 1 . . . . . . . Recyclers Shooed 3 | 1 . . . . . . 1 . . . . 1 . . Parts Field Recycled . | . . . . . . . . . . . . . . . Retrieved Matter . | . . . . . . . . . . . . . . . Parts Self-Destructed 62 | . . . . . . . . 9 20 . 33 . . . Prevented . | . . . . . . . . . . . . . . . Kills | -11 -10 -10 -10 -9 -8 -8 -7 -7 -7 -7 -6 -6 -6 -6 ------- Run | Scr Mat Min Exi Min Mat Gar Fac Low Low Dat Pro Fac Was Fac Combat Hostiles Destroyed 166 | . 13 3 1 12 25 20 30 8 11 . 5 38 . . Guns 82 | . 2 . 1 8 17 8 10 2 3 . 3 28 . . Cannons 7 | . . . . . 1 . 6 . . . . . . . AOE 75 | . 11 3 . 4 7 12 13 6 8 . 2 9 . . Classes Destroyed 19 | 1 5 . . 2 3 2 3 . . . . 3 . . Worker 7 | . 1 . . . 1 . 3 . . . . 2 . . Builder 4 | . 2 . . . 1 . 1 . . . . . . . Tunneler 4 | . . . . 2 . . 1 . . . . 1 . . Hauler 5 | . 2 . . . 2 . 1 . . . . . . . Recycler 10 | 1 1 . . . 2 . 3 . . . . 3 . . Operator 3 | . . . . . 1 . . . . . . 2 . . Watcher 1 | . . . . . . . . . . . . 1 . . Swarmer 51 | . 9 3 . 5 6 3 8 4 6 . 2 5 . . Cutter 2 | . . . . . . 2 . . . . . . . . Grunt 81 | . 4 . 1 6 13 13 14 3 4 . 3 20 . . Brawler 2 | . . . . . . . 1 . . . . 1 . . Duelist 2 | . . . . . . . . . . . . 2 . . Protector 2 | . . . . . . . 1 . . . . 1 . . Sentry 13 | . . . . . 5 . 4 1 1 . . 2 . . Specialist 2 | . . . . . . 2 . . . . . . . . Hunter 3 | . . . . . . . . . . . . 3 . . Programmer 6 | . . . . . . . 2 . . . . 4 . . Heavy 1 | . . . . . 1 . . . . . . . . . Assembled 2 | . . . . 2 . . . . . . . . . . Thug 1 | . . . . 1 . . . . . . . . . . Best Kill Streak 8 | 1 5 3 1 5 6 8 7 5 4 . 3 8 . . Combat Bots Only 8 | . 3 3 1 4 5 8 7 5 4 . 3 8 . . Max Kills in Single Turn 6 | 1 3 2 1 2 4 2 3 3 2 . 2 6 . . Gunslinging 1 | . . . . . . . . . . . . 1 . . Exploded 3 | . 3 2 . 2 3 2 3 3 2 . 2 3 . . Melee . | . . . . . . . . . . . . . . . Uniques/NPCs Destroyed . | . . . . . . . . . . . . . . . Combat | -11 -10 -10 -10 -9 -8 -8 -7 -7 -7 -7 -6 -6 -6 -6 -------- Run | Scr Mat Min Exi Min Mat Gar Fac Low Low Dat Pro Fac Was Fac Damage Taken 10196 | . 170 46 5 312 1298 783 1751 211 296 . 1556 3059 397 312 Core 1671 | . 43 8 . 13 172 79 197 23 30 . 256 267 271 312 Absorbed by Shields . | . . . . . . . . . . . . . . . Core Remaining (%) 63 | 100 . . . 74 . 54 . . . . 27 . . . Volleys Fired 383 | 6 26 2 2 30 68 34 75 9 10 . 12 109 . . Largest 4 | 2 2 1 2 2 3 3 3 3 3 . 3 4 . . Hottest 269 | 60 60 30 70 103 126 107 126 172 172 . 101 269 . . Shots Fired 840 | 12 46 2 4 48 173 54 164 13 18 . 27 279 . . Gun 704 | 12 40 . 4 45 159 36 131 6 12 . 25 234 . . Cannon 54 | . . . . . 4 . 19 2 . . . 29 . . Launcher 74 | . 6 2 . 3 10 18 14 5 6 . 2 8 . . Special 8 | . . . . . . . . . . . . 8 . . Kinetic 450 | 6 20 . 2 33 116 24 102 2 4 . 19 122 . . Thermal 301 | 6 20 . 2 12 47 12 48 6 8 . 6 134 . . Explosive 74 | . 6 2 . 3 10 18 14 5 6 . 2 8 . . Electromagnetic 7 | . . . . . . . . . . . . 7 . . Robot Hit Streak 24 | 3 8 . 10 5 8 8 19 10 5 . 7 24 . . Robot Miss Streak 6 | 2 4 . . 4 3 2 5 . 3 . 4 6 . . Penetration Max 1 | . . . . 1 . . . . . . . 1 . . Secondary Targets 11 | . . . . . 3 . 1 . . . 1 6 . . Max Gunslinging Chain 1 | . . . . . 1 . 1 . . . 1 1 . . Shots Hit Robots 516 | 7 31 . 4 22 108 28 105 5 12 . 18 176 . . Core Hits 384 | 2 24 3 8 19 54 35 81 15 25 . 23 95 . . Critical Kills 7 | . . . . . . . 1 . . . . 6 . . Critical Parts Destroyed 9 | . . . . 1 1 . 1 . . . . 6 . . Critical Strikes 28 | . . . . 1 5 . 6 . . . 3 13 . . Burn 9 | . . . . . 4 . 1 . . . 3 1 . . Destroy 16 | . . . . 1 1 . 2 . . . . 12 . . Blast 3 | . . . . . . . 3 . . . . . . . Melee Attacks 14 | . . . . . . . 3 1 . . . 10 . . Impact 11 | . . . . . . . . 1 . . . 10 . . Slashing . | . . . . . . . . . . . . . . . Piercing . | . . . . . . . . . . . . . . . Sneak Attacks 4 | . . . . . . . 3 . . . . 1 . . Combat Hostiles . | . . . . . . . . . . . . . . . Follow-up Attacks . | . . . . . . . . . . . . . . . Damage Inflicted 17722 | 90 1165 170 126 645 2551 1328 3451 502 808 . 519 6367 . . Guns 8881 | 90 354 . 57 470 1861 356 1438 80 149 . 309 3717 . . Cannons 816 | . . . . . 58 . 558 . . . . 200 . . Explosions 7905 | . 811 170 . 175 632 972 1455 422 659 . 210 2399 . . Melee 51 | . . . . . . . . . . . . 51 . . Ramming 69 | . . . 69 . . . . . . . . . . . Kinetic 5811 | 48 201 . 30 393 1181 238 1319 18 43 . 224 2116 . . Thermal 4579 | 42 153 . 27 77 738 118 677 62 106 . 85 2494 . . Explosive 6891 | . 811 170 . 175 632 972 1455 422 659 . 210 1385 . . Electromagnetic 321 | . . . . . . . . . . . . 321 . . Impact 51 | . . . . . . . . . . . . 51 . . Slashing . | . . . . . . . . . . . . . . . Piercing . | . . . . . . . . . . . . . . . Highest Corruption 3 | . 1 1 1 1 . . 1 1 . . . 3 3 3 Average Corruption 1 | . 1 1 1 1 . . 1 1 . . . 2 3 3 Corruption Purged 1 | . . . . . . . . 1 . . . . . . Effects 46 | . 1 . 7 2 . . 8 . . . . 23 4 1 Message Errors 21 | . . . 4 2 . . 4 . . . . 10 1 . Matter Fused 3 | . . . . . . . . . . . . 2 1 . Heat Flow Errors 4 | . . . . . . . . . . . . 3 1 . Energy Discharges 9 | . . . 2 . . . 1 . . . . 5 . 1 Data Loss (minor) 7 | . 1 . 1 . . . 3 . . . . 1 1 . Weapon Failures 2 | . . . . . . . . . . . . 2 . . Overload Shots . | . . . . . . . . . . . . . . . Overflow Damage 589 | . 46 . . . 22 . 21 . . . . 500 . . Projectiles 7 | . . . . . . . 7 . . . . . . . Explosions 541 | . 46 . . . 22 . 14 . . . . 459 . . Melee 41 | . . . . . . . . . . . . 41 . . Knockbacks 4 | . . . . . . . 4 . . . . . . . Impact . | . . . . . . . . . . . . . . . Kinetic 4 | . . . . . . . 4 . . . . . . . Secondary . | . . . . . . . . . . . . . . . Self-Inflicted Damage 779 | . 19 31 5 39 71 157 93 . 23 . 16 325 . . Shots 25 | . 1 2 . 1 4 7 4 . 1 . 1 4 . . Rammed 35 | . . . 35 . . . . . . . . . . . Targets Rammed 36 | . . . 36 . . . . . . . . . . . Kicked . | . . . . . . . . . . . . . . . Crushed 1 | . . . 1 . . . . . . . . . . . Highest Temperature 422 | . 30 . 18 240 270 105 337 198 186 . 112 422 97 . Average Temperature 97 | . 16 . 9 75 96 35 97 75 77 . 58 133 51 . Received Heat Transfer 2634 | . 54 . . 93 468 252 552 48 72 . 315 780 . . Effects 10 | . . . . . 1 . 2 . . . . 7 . . Shutdowns 1 | . . . . . . . . . . . . 1 . . Energy Bleed 4 | . . . . . 1 . . . . . . 3 . . Interference 5 | . . . . . . . 2 . . . . 3 . . Siege Activations . | . . . . . . . . . . . . . . . Robots Corrupted 1 | . . . . . . . . . . . . 1 . . Combat Hostiles 1 | . . . . . . . . . . . . 1 . . Parts Fried 5 | . . . . . . . . . . . . 5 . . Impact Corruptions 1 | . . . . . . . . . . . . 1 . . Robots Melted 1 | . . . . . . . 1 . . . . . . . Combat Hostiles 1 | . . . . . . . 1 . . . . . . . Parts Melted 12 | . 1 . . . 2 . . . . . 1 8 . . Heat Transferred 8429 | 100 350 . 74 185 1739 259 1553 137 237 . 407 3388 . . Parts Sabotaged 2 | . . . . . . . . . . . . 2 . . Parts Stolen . | . . . . . . . . . . . . . . . Parts Stripped . | . . . . . . . . . . . . . . . Power Chain Reactions . | . . . . . . . . . . . . . . . Missiles Intercepted . | . . . . . . . . . . . . . . . Alert | -11 -10 -10 -10 -9 -8 -8 -7 -7 -7 -7 -6 -6 -6 -6 ------- Run | Scr Mat Min Exi Min Mat Gar Fac Low Low Dat Pro Fac Was Fac Peak Influence 948 | 5 257 81 . 217 340 948 612 . . . . 796 266 152 Initial 497 | . 3 11 . . 26 209 497 . . . . . 266 137 Average 259 | 2 77 44 . 108 201 703 294 . . . . 260 246 146 Maximum Alert Level 3 | . 1 . . 1 1 3 2 . . . . 3 1 . Low Security (%) 53 | 100 90 100 . 78 55 . 48 . . . . 44 21 100 Level 1 20 | . 9 . . 21 44 12 16 . . . . 17 78 . Level 2 18 | . . . . . . 22 34 . . . . 36 . . Level 3 7 | . . . . . . 65 . . . . . 1 . . Level 4 . | . . . . . . . . . . . . . . . Level 5 . | . . . . . . . . . . . . . . . High Security . | . . . . . . . . . . . . . . . Max Security . | . . . . . . . . . . . . . . . Squads Dispatched 31 | . 3 . . 1 4 . 10 . . . 1 12 . . Investigation 3 | . 1 . . 1 . . 1 . . . . . . . Extermination 7 | . . . . . . . 3 . . . . 4 . . Reinforcement 13 | . 2 . . . 4 . 3 . . . . 4 . . Assault 6 | . . . . . . . 1 . . . 1 4 . . Garrison 2 | . . . . . . . 2 . . . . . . . Intercept . | . . . . . . . . . . . . . . . Construction Impeded 2 | . . . . . . . 1 . . . . 1 . . Haulers Reinforced . | . . . . . . . . . . . . . . . Active Scanning Responses . | . . . . . . . . . . . . . . . Cargo Convoy Interrupts . | . . . . . . . . . . . . . . . Stealth | -11 -10 -10 -10 -9 -8 -8 -7 -7 -7 -7 -6 -6 -6 -6 --------- Run | Scr Mat Min Exi Min Mat Gar Fac Low Low Dat Pro Fac Was Fac Distress Signals 4 | . 1 . . . 1 . 1 . . . . 1 . . Communications Jammed . | . . . . . . . . . . . . . . . Distress Signals . | . . . . . . . . . . . . . . . Times Spotted 251 | . 24 3 . 17 37 23 45 9 11 . 23 48 5 6 Peak Tracking Total 10 | . 5 3 . 4 6 6 5 5 4 . 10 5 5 6 Tactical Retreats 4 | . . . . 1 1 . 1 . . . . 1 . . Traps | -11 -10 -10 -10 -9 -8 -8 -7 -7 -7 -7 -6 -6 -6 -6 ------- Run | Scr Mat Min Exi Min Mat Gar Fac Low Low Dat Pro Fac Was Fac Traps Triggered 11 | . 2 . . . . 2 . . . . . 7 . . Indirectly 4 | . . . . . . . . . . . . 4 . . Trap Hack Attempts . | . . . . . . . . . . . . . . . Triggered . | . . . . . . . . . . . . . . . Disarmed . | . . . . . . . . . . . . . . . Reprogrammed . | . . . . . . . . . . . . . . . Reused . | . . . . . . . . . . . . . . . Traps Extracted . | . . . . . . . . . . . . . . . Installed . | . . . . . . . . . . . . . . . Triggered 1 | . . . . . . . . . 1 . . . . . Machines | -11 -10 -10 -10 -9 -8 -8 -7 -7 -7 -7 -6 -6 -6 -6 ---------- Run | Scr Mat Min Exi Min Mat Gar Fac Low Low Dat Pro Fac Was Fac Machines Disabled 35 | . 3 . . . 5 1 1 . . . . 25 . . Max in Single Turn 9 | . 3 . . . 1 1 1 . . . . 9 . . Garrison Access 2 | . . . . . . . 1 . . . . . . 1 Garrison Relay 1 | . . . . . . 1 . . . . . . . . Machines Sabotaged . | . . . . . . . . . . . . . . . Garrisons Compromised 1 | . . . . . . . . . . . . 1 . . Overloaded Fab Kills . | . . . . . . . . . . . . . . . Fab Network Shutdowns . | . . . . . . . . . . . . . . . Hacking | -11 -10 -10 -10 -9 -8 -8 -7 -7 -7 -7 -6 -6 -6 -6 --------- Run | Scr Mat Min Exi Min Mat Gar Fac Low Low Dat Pro Fac Was Fac Machines Accessed 40 | . 5 1 1 1 9 . 10 1 . 4 . 7 . 1 Terminals 22 | . 5 . . . 6 . 6 . . . . 5 . . Fabricators 2 | . . . . . . . 1 . . . . 1 . . Repair Stations 3 | . . . . . 1 . 2 . . . . . . . Recycling Units 1 | . . . . . . . . . . . . 1 . . Scanalyzers 1 | . . . . . 1 . . . . . . . . . Garrison Access 3 | . . . . . 1 . 1 . . . . . . 1 Total Hacks 114 | . 18 1 1 1 31 . 23 1 . 23 . 14 . 1 Successful 73 | . 11 1 1 1 18 . 11 1 . 23 . 5 . 1 Failed 41 | . 7 . . . 13 . 12 . . . . 9 . . Catastrophic 8 | . . . . . 4 . 1 . . . . 3 . . Database Lockouts . | . . . . . . . . . . . . . . . Manual 34 | . 9 . 2 . 12 . 4 . . . . 7 . . Terminals 64 | . 18 . . . 22 . 13 . . . . 11 . . Fabricators 4 | . . . . . . . 2 . . . . 2 . . Repair Stations 5 | . . . . . 2 . 3 . . . . . . . Recycling Units 1 | . . . . . . . . . . . . 1 . . Scanalyzers 6 | . . . . . 6 . . . . . . . . . Garrison Access 7 | . . . . . 1 . 5 . . . . . . 1 Terminal Hacks 48 | . 9 1 1 1 9 . 3 1 . 23 . . . . Record 12 | . . . 1 . . . . . . 11 . . . . Part Schematic 5 | . . . . . . . . . . 5 . . . . Robot Schematic 4 | . . . . . . . . . . 4 . . . . Robot Analysis 2 | . 2 . . . . . . . . . . . . . Prototype ID Bank 6 | . . . . . 3 . . . . 3 . . . . Open Door 3 | . . 1 . 1 . . . 1 . . . . . . Branch Access Points 1 | . . . . . . . 1 . . . . . . . Terminal Index 1 | . . . . . 1 . . . . . . . . . Alert Level 2 | . . . . . 2 . . . . . . . . . Unreport Threat 3 | . 1 . . . 1 . 1 . . . . . . . Locate Traps 2 | . 1 . . . 1 . . . . . . . . . Hauler Manifests 4 | . 2 . . . 1 . 1 . . . . . . . Zone Layout 3 | . 3 . . . . . . . . . . . . . Fabricator Hacks 3 | . . . . . . . 2 . . . . 1 . . Load Schematic 1 | . . . . . . . 1 . . . . . . . Build 2 | . . . . . . . 1 . . . . 1 . . Repair Station Hacks 3 | . . . . . 1 . 2 . . . . . . . Scan Component 2 | . . . . . 1 . 1 . . . . . . . Repair 1 | . . . . . . . 1 . . . . . . . Recycling Unit Hacks . | . . . . . . . . . . . . . . . Scanalyzer 6 | . . . . . 6 . . . . . . . . . Insert Component 3 | . . . . . 3 . . . . . . . . . Analyze 3 | . . . . . 3 . . . . . . . . . Garrison Access Hacks 4 | . . . . . 1 . 2 . . . . . . 1 Unlock Access 1 | . . . . . 1 . . . . . . . . . Seal Access 2 | . . . . . . . 1 . . . . . . 1 Coupler Status 1 | . . . . . . . 1 . . . . . . . Unauthorized Hacks 9 | . 2 . . . 1 . 2 . . . . 4 . . Terminals 6 | . 2 . . . 1 . . . . . . 3 . . Track 2 | . 1 . . . . . . . . . . 1 . . Botnet 2 | . . . . . 1 . . . . . . 1 . . Operators 2 | . 1 . . . . . . . . . . 1 . . Fabricators 1 | . . . . . . . . . . . . 1 . . Haulers 1 | . . . . . . . . . . . . 1 . . Repair Stations . | . . . . . . . . . . . . . . . Recycling Units . | . . . . . . . . . . . . . . . Scanalyzers . | . . . . . . . . . . . . . . . Garrison Access 2 | . . . . . . . 2 . . . . . . . Restock 1 | . . . . . . . 1 . . . . . . . Reprogram 1 | . . . . . . . 1 . . . . . . . Data Cores Recovered 1 | . . . . . 1 . . . . . . . . . Used . | . . . . . . . . . . . . . . . Hacking Detections 28 | . 5 . . . 8 . 8 . . . . 7 . . Full Trace Events 1 | . . . . . . . 1 . . . . . . . Feedback Events . | . . . . . . . . . . . . . . . Feedback Blocked . | . . . . . . . . . . . . . . . Robot Schematics Acquired 4 | . . . . . . . . . . 4 . . . . Robots Built . | . . . . . . . . . . . . . . . Matter . | . . . . . . . . . . . . . . . Time . | . . . . . . . . . . . . . . . Total Robot Build Rating . | . . . . . . . . . . . . . . . Part Schematics Acquired 8 | . . . . . 3 . . . . 5 . . . . Parts Built 4 | . . . . . . . 2 . . . . 2 . . Matter 336 | . . . . . . . 102 . . . . 234 . . Time 168 | . . . . . . . 51 . . . . 117 . . Total Part Build Rating 16 | . . . . . . . 2 . . . . 14 . . Parts Repaired 1 | . . . . . . . 1 . . . . . . . Time 136 | . . . . . . . 136 . . . . . . . Parts Recycled . | . . . . . . . . . . . . . . . Recycled Matter . | . . . . . . . . . . . . . . . Retrieved Matter . | . . . . . . . . . . . . . . . Retrieved Components . | . . . . . . . . . . . . . . . Parts Scanalyzed 3 | . . . . . 3 . . . . . . . . . Part Schematics Acquired 3 | . . . . . 3 . . . . . . . . . Parts Damaged . | . . . . . . . . . . . . . . . Bothacking | -11 -10 -10 -10 -9 -8 -8 -7 -7 -7 -7 -6 -6 -6 -6 ------------ Run | Scr Mat Min Exi Min Mat Gar Fac Low Low Dat Pro Fac Was Fac Used RIF Installer 1 | . . . . . . 1 . . . . . . . . Robots Hacked 4 | . . . . . . . 1 . . . . 3 . . Non-combat 4 | . . . . . . . 1 . . . . 3 . . Combat . | . . . . . . . . . . . . . . . Robot Hacks Applied 7 | . . . . . . . 3 . . . . 4 . . find_chute 1 | . . . . . . . . . . . . 1 . . purge_threat 4 | . . . . . . . 2 . . . . 2 . . disarm_traps 1 | . . . . . . . 1 . . . . . . . formatsys_low 1 | . . . . . . . . . . . . 1 . . Relay Couplers Released 5 | . . . . . . 5 . . . . . . . . Machine Destruction 5 | . . . . . . 5 . . . . . . . . Attached 2 | . . . . . . . 1 . . . . 1 . . Robots Rewired 5 | . . . 3 . . . . . . . 2 . . . Allies Hacked . | . . . . . . . . . . . . . . . Hacks Repelled . | . . . . . . . . . . . . . . . Allies | -11 -10 -10 -10 -9 -8 -8 -7 -7 -7 -7 -6 -6 -6 -6 -------- Run | Scr Mat Min Exi Min Mat Gar Fac Low Low Dat Pro Fac Was Fac Total Allies 8 | . . . 3 . . . 1 . . . 3 1 . . Largest Group 3 | . . . 3 3 . . 1 . . . 3 1 . . Highest-Rated Group 153 | . . . 37 37 . . 32 . . . 153 23 . . Highest-Rated Ally 95 | . . . 21 21 . . 32 . . . 95 23 . . Total Orders 5 | . . . 2 . . . . . . . . 3 . . STAY 3 | . . . 1 . . . . . . . . 2 . . FOLLOW 1 | . . . 1 . . . . . . . . . . . AID 1 | . . . . . . . . . . . . 1 . . Ally Attacks 94 | . . . . 22 . . 4 . . . 68 . . . Total Damage 2795 | . . . . 384 . . 149 . . . 2262 . . . Kills 23 | . . . . 5 . . 1 . . . 17 . . . Allies Corrupted . | . . . . . . . . . . . . . . . Allies Melted . | . . . . . . . . . . . . . . . Turrets Deployed 3 | . . . . . . . . . . . 3 . . . Intel | -11 -10 -10 -10 -9 -8 -8 -7 -7 -7 -7 -6 -6 -6 -6 ------- Run | Scr Mat Min Exi Min Mat Gar Fac Low Low Dat Pro Fac Was Fac Robot Analysis Total 2 | . 2 . . . . . . . . . . . . . Derelict Logs Recovered 6 | . . 1 . 1 . . . 1 1 . 2 . . . Drone Launches . | . . . . . . . . . . . . . . . Drone Recoveries . | . . . . . . . . . . . . . . . Exploration | -11 -10 -10 -10 -9 -8 -8 -7 -7 -7 -7 -6 -6 -6 -6 ------------- Run | Scr Mat Min Exi Min Mat Gar Fac Low Low Dat Pro Fac Was Fac Turns Passed 14773 | 47 1166 629 1055 831 1567 1166 1952 850 615 162 1556 2807 236 134 Spaces Moved 7694 | 14 652 410 611 404 736 456 839 546 326 79 658 1496 199 268 Core 385 | . . . . . . . . . . . . . 117 268 Treads 1415 | 14 556 . . . 98 456 290 . . . . . 1 . Legs 3352 | . . . . . . . 549 546 326 79 658 1113 81 . Wheels 2542 | . 96 410 611 404 638 . . . . . . 383 . . Hover . | . . . . . . . . . . . . . . . Flight . | . . . . . . . . . . . . . . . Fastest Speed 50 | 160 145 145 145 145 155 170 127 127 127 207 120 120 50 50 Average Speed 157 | 160 157 145 145 145 173 229 188 128 171 207 201 133 98 50 Slowest Speed 460 | 160 160 145 145 145 270 270 460 207 207 207 360 200 200 50 Overloaded Moves . | . . . . . . . . . . . . . . . Propulsion Burnouts . | . . . . . . . . . . . . . . . Robots Hopped . | . . . . . . . . . . . . . . . Cave-ins Triggered . | . . . . . . . . . . . . . . . Exploration Rate (%) 55 | 2 87 80 89 84 53 68 13 57 51 70 65 28 76 11 Regions Visited 14 Branch Regions 7 Pre-discovered Areas 5 | . . 2 1 . . . . . . 1 1 . . . Known Exits Taken 2 | . . . . . 1 . 1 . . . . . . . Unknown Exits Taken 9 | 1 1 1 1 1 . . . 1 1 1 1 . . . Scrap Searched 9 | . . 1 . 2 . . . 2 2 . 2 . . . Spaces Dug 66 | . . 16 . . 24 1 1 1 . . . 23 . . Terrain Destroyed 440 | . 56 16 . 14 72 35 42 15 28 . 18 144 . . Melee 8 | . . . . . . . . 1 . . . 7 . . Projectile 37 | . . . . 1 4 . 8 . . . . 24 . . AOE 395 | . 56 16 . 13 68 35 34 14 28 . 18 113 . . Terrain Rammed . | . . . . . . . . . . . . . . . Walls Destroyed . | . . . . . . . . . . . . . . . Machines Disabled . | . . . . . . . . . . . . . . . Actions | -11 -10 -10 -10 -9 -8 -8 -7 -7 -7 -7 -6 -6 -6 -6 --------- Run | Scr Mat Min Exi Min Mat Gar Fac Low Low Dat Pro Fac Was Fac Total 9555 | 30 741 441 689 604 889 524 1047 678 365 78 867 2093 241 268 Wait 859 | . 20 19 6 142 14 11 51 88 18 . 151 317 22 . Move 7682 | 13 651 409 610 403 736 455 838 545 325 78 657 1496 198 268 Hop . | . . . . . . . . . . . . . . . Pick Up 126 | 1 21 6 4 6 14 3 18 7 3 . 13 24 6 . Fast Attach 45 | . 2 . . . 3 1 9 2 . . 6 21 1 . Attach 46 | 4 . . . . 10 3 7 6 1 . 7 7 1 . Detach 4 | . . . . . 1 . . . . . . 2 1 . Swap 184 | . 12 4 2 12 25 10 26 10 7 . 8 65 3 . Drop 143 | 6 9 1 5 11 18 3 20 10 1 . 8 42 9 . Fire 383 | 6 26 2 2 30 68 34 75 9 10 . 12 109 . . Melee 14 | . . . . . . . 3 1 . . . 10 . . Ram 2 | . . . 2 . . . . . . . . . . . Kick . | . . . . . . . . . . . . . . . Crush 34 | . . . 34 . . . . . . . . . . . Escape Stasis 4 | . . . . . . 4 . . . . . . . . Rewire 29 | . . . 24 . . . . . . . 5 . . . Trap . | . . . . . . . . . . . . . . . Miscellaneous . | . . . . . . . . . . . . . . . Route ------- -11/Scrapyard -10/Materials (discovered 3 exits: [*Mat x2] / *Min) -10/Mines (discovered 2 exits: [*Mat] / *Exi) -10/Exiles -9/Mines -8/Materials (discovered 4 exits: *Fac x3 / Gar) -8/Garrison (discovered 3 exits: *Fac x3) -7/Factory (discovered 3 exits: Sto / *Low x2) -7/Lower Caves -7/Lower Caves -7/Data Miner -6/Proximity Caves -6/Factory (discovered 2 exits: [*Fac] / Low) -6/Waste -6/Factory History --------- Turn | Location | Event 7 | -11/Scrapyard | Discovered new exit (range 3) 48 | -11/Scrapyard | Entered Materials 273 | -10/Materials | Discovered new exit (range 14) 311 | -10/Materials | Build established: Mutant 728 | -10/Materials | Discovered new exit (range 4) 896 | -10/Materials | Discovered new exit (range 15) 1214 | -10/Materials | Entered Mines 1278 | -10/Mines | Discovered new exit (range 7) 1317 | -10/Mines | Learned location of Zion (-6) 1357 | -10/Mines | Found a hidden stash of uninstalled traps 1504 | -10/Mines | Learned location of Storage (-7) 1621 | -10/Mines | Found the Drone Emporium 1629 | -10/Mines | Found Prototype Device 1630 | -10/Mines | Identified Thief Drone Bay 1837 | -10/Mines | Deemed a non-threat by the Exiles lab entrance 1837 | -10/Mines | Discovered new exit (range 5) 1843 | -10/Mines | Entered Exiles 1843 | -10/Exiles | Found Exiles lab destroyed 2060 | -10/Exiles | Opened EX-Vault 2067 | -10/Exiles | Found Deploy-a-Sentry 2070 | -10/Exiles | Found Deploy-a-Sentry 2072 | -10/Exiles | Found Deploy-a-Sentry 2872 | -10/Exiles | Discovered new exit (range 14) 2898 | -10/Exiles | Entered Mines 2898 | -9/Mines | Accompanied by 3 allies 3054 | -9/Mines | Met a Derelict shopkeep closing up shop 3177 | -9/Mines | Excavation squad dispatched 3177 | -9/Mines | A large section of the Mines collapsed 3427 | -9/Mines | Excavation squad dispatched 3437 | -9/Mines | Found a damaged Exp. Sensor Array with a note attached 3441 | -9/Mines | Found Prototype Device 3443 | -9/Mines | Identified Exp. Sensor Array 3588 | -9/Mines | A weapon hastily lodged in a ceiling crevice suddenly fell to the ground 3658 | -9/Mines | Learned location of 1 exit from Materials 3665 | -9/Mines | Discovered new exit (range 7) 3678 | -9/Mines | Joined a pair of Derelicts in attacking an 0b10 outpost 3729 | -9/Mines | Entered Materials 3729 | -8/Materials | Evolved 4 slots: Propulsion x1, Utility x2, Weapon x1 3730 | -8/Materials | Identified exit to Factory 4279 | -8/Materials | Discovered exit to Factory (range 10) 4589 | -8/Materials | Build established: Skirmisher 4869 | -8/Materials | Discovered exit to Factory (range 20) 5296 | -8/Materials | Identified exit to Garrison 5296 | -8/Materials | Entered Garrison 5346 | -8/Garrison | Triggered checkpoint 5443 | -8/Garrison | Triggered checkpoint 5477 | -8/Garrison | Destroyed 8 combat bots 5534 | -8/Garrison | Discovered exit to Factory (range 11) 5679 | -8/Garrison | Discovered exit to Factory (range 17) 5688 | -8/Garrison | Triggered checkpoint 5846 | -8/Garrison | Triggered checkpoint 5971 | -8/Garrison | Discovered exit to Factory (range 15) 6022 | -8/Garrison | Installed Relay Interface Framework 6316 | -8/Garrison | Triggered checkpoint 6359 | -8/Garrison | Garrison Relay disabled 6375 | -8/Garrison | Build established: Scavenger-Gunner 6462 | -8/Garrison | Entered Factory 6462 | -7/Factory | Evolved 2 slots: Propulsion x1, Utility x1 6600 | -7/Factory | Discovered new exit (range 13) 6746 | -7/Factory | Identified exit to Storage 6746 | -7/Factory | Identified exit to Lower Caves 6862 | -7/Factory | First assault squad dispatched 7618 | -7/Factory | Fabricated Lgt. Armor Plating? 7671 | -7/Factory | Build established: Scavenger-Skirmisher 7973 | -7/Factory | Repaired Broken Exp. Sensor Array? 7991 | -7/Factory | Build established: Scavenger-Tank 8066 | -7/Factory | Destroyed 7 combat bots 8414 | -7/Factory | Entered Lower Caves 8496 | -7/Lower Caves | Encountered a Warlord checkpoint 8764 | -7/Lower Caves | P-60 Hacker assimilated allied SN-I0A(b) 8910 | -7/Lower Caves | Build established: Scavenger-Mutant 8937 | -7/Lower Caves | Found Alien Artifact 8937 | -7/Lower Caves | Identified Core Expander 8937 | -7/Lower Caves | Installed Core Expander, added new Utility slot 9090 | -7/Lower Caves | Learned Factory emergency access door positions 9140 | -7/Lower Caves | Discovered new exit (range 15) 9211 | -7/Lower Caves | Attracted the attention of an 0b10 checkpoint 9264 | -7/Lower Caves | Entered another Lower Caves area 9761 | -7/Lower Caves | Attracted the attention of an 0b10 checkpoint 9789 | -7/Lower Caves | Build established: Tank 9858 | -7/Lower Caves | Discovered new exit (range 11) 9879 | -7/Lower Caves | Entered Data Miner 9879 | -7/Data Miner | Discovered new exit (range 6) 9919 | -7/Data Miner | Met Data Miner 9964 | -7/Data Miner | Learned location of Section 7 (-2) 9964 | -7/Data Miner | Acquired the access code to Warlord's prototype stash 9993 | -7/Data Miner | Received God Mode back door access code from Data Miner 10041 | -7/Data Miner | Entered Proximity Caves 10056 | -6/Proximity Caves | Escorted by Enhanced Grunt 10161 | -6/Proximity Caves | Attracted the attention of an 0b10 outpost 10171 | -6/Proximity Caves | DAS Turret deployed 10175 | -6/Proximity Caves | DAS Turret deployed 10216 | -6/Proximity Caves | Lost 7 parts (1p1n3u2w) 10360 | -6/Proximity Caves | Core integrity fell below 50% 10401 | -6/Proximity Caves | Found Prototype Device 10402 | -6/Proximity Caves | Identified Exp. Thermal Shield 10435 | -6/Proximity Caves | Spotted B-75 Beast 10708 | -6/Proximity Caves | Build established: Scavenger-Tank 10758 | -6/Proximity Caves | Learned location of 1 exit from Factory 11078 | -6/Proximity Caves | P-60 Hacker assimilated allied Soldier 5b 11088 | -6/Proximity Caves | DAS Turret deployed 11137 | -6/Proximity Caves | Lost 6 parts (3n1u2w) 11305 | -6/Proximity Caves | Discovered new exit (range 13) 11409 | -6/Proximity Caves | Build established: Scavenger-Mutant 11597 | -6/Proximity Caves | Entered Factory 11597 | -6/Factory | Evolved 2 slots: Propulsion x1, Weapon x1 11598 | -6/Factory | Identified exit to Lower Caves 12065 | -6/Factory | Discovered new exit (range 13) 12175 | -6/Factory | Build established: Scavenger-Skirmisher 13195 | -6/Factory | Fabricated Antimatter Reactor? 13377 | -6/Factory | Found Launcher Loader 13389 | -6/Factory | First assault squad dispatched 13554 | -6/Factory | Destroyed 8 combat bots 14062 | -6/Factory | Incoming assault squad redirected 14073 | -6/Factory | Incoming assault squad redirected 14212 | -6/Factory | Lost 6 parts (2n2u2w) 14404 | -6/Factory | Sucked down chute 14404 | -6/Factory | Entered Waste 14517 | -6/Waste | Spotted C-40 Crusher 14559 | -6/Waste | Spotted C-40 Crusher 14562 | -6/Waste | Spotted C-40 Crusher 14565 | -6/Waste | Spotted C-40 Crusher 14566 | -6/Waste | Crushed by Compactor (1 part destroyed, 1 dropped) 14570 | -6/Waste | Crushed by Compactor (1 part destroyed, 1 dropped) 14573 | -6/Waste | Crushed by Compactor (1 part destroyed, 1 dropped) 14584 | -6/Waste | Crushed by Compactor (1 part destroyed, 1 dropped) 14589 | -6/Waste | Crushed by Compactor (1 part destroyed, 1 dropped) 14591 | -6/Waste | Core integrity fell below 50% 14608 | -6/Waste | Spotted C-40 Crusher 14620 | -6/Waste | Lost 7 parts (3n2u2w) 14625 | -6/Waste | Discovered new exit (range 11) 14633 | -6/Waste | Spotted C-40 Crusher 14640 | -6/Waste | Entered Factory 14766 | -6/Factory | Core integrity fell below 20% 14774 | -6/Factory | Destroyed by S-27 Virus with Autogun Last Messages --------------- Coil Gun crushed. Adv. Heat Sink crushed. Armor Integrity Analyzer crushed. Adv. Targeting Computer crushed. Imp. Terrain Scan Processor crushed. Great Maul crushed. Arm. Leg crushed. EXIT=FOUND System corrupted: Matter fused (-7). LOCATION=UNKNOWN GOAL=ESCAPE System corrupted: Energy discharge (-39). Slug penetrates Wall. K-01 Serf collects debris. Detecting nearby Garrison Access. Connecting with Garrison Access... Current location identified: Factory >>Seal Access door sealed. S-27 Virus destroyed. Map ----- +----------------------------------------------------+ | | | | | | | | | | | | | | | | | | | | | | | | | | | | | | | ?????????????????????????????????????????????????? | | ???????????????????########??????????????????????? | | ???????????????????# #??????????????????????? | | ???????????????????# #??????????????????????? | | ???????????????????# #??????????????????????? | | ???????????????????# #??????????????????????? | | ???????????????????# #??????????????????????? | | ???????????????????# #?####?????????????????? | | ???????????????????####+###?"""""????????????????? | | ????????????????????# # """""????????????????? | | ??????????########### @# """""????????????????? | | ????????? k + """""????????????????? | | ????????? # #?????????????? | | ????????? # #?????????????? | | ???????????"" """" """" #?! #?????????????? | | ???????????????""" """" #? #?????? ??????? | | ???????????????""" """"ss%#?? #????? ???????? | | ????????????????"" """" ############## ???????? | | ????????????????"" """" s ???????? | | ????????????? """" """" ??????? | | ?????????? ????? | | ?????????? """"""??????" | | ?????????? """""" ?????" | | ?????????? """""" "???"" | | ??????????? """""" """?"" | | ???????????#### ########## | | ??????????????# ?????????# """""" """""" | | ?????????????# ?????????# """""" """""" | | ?????????????# ?????????# """""" """""" | | ?????????????# ??????????# """""" """""" | | ?????????????# T ??????????# | | ?????????????? "" ??????????# | | ???????????????? ? ????????????# | | ???????????????????????##########+### | | ???????????????????????# # ######## | +----------------------------------------------------+ Best States ------------- Heat Dissipation 75 Energy Generation 21 Energy Capacity 825 Matter Stores 300 Matter Capacity 300 Sight Range 20 Robot Scan Range 20 Terrain Scan Range 20 Terrain Scan Density 110 Armor Coverage 600 Weapon Shielding 66 Evasion (%) 55 Targeting Accuracy 8 Armor Integrity Analysis 20 Recoil Reduction 4 Relay Coupler Types 1 Relay Coupler Value 20 Item Schematics ----------------- Imp. Weapon Shielding | -8/Materials | Scanalyzed Lgt. Armor Plating | -8/Materials | Scanalyzed Imp. Datajack | -8/Materials | Scanalyzed Combat Drone Bay | -7/Data Miner | Free Lgt. Regenerative Plating | -7/Data Miner | Free Triangulator | -7/Data Miner | Free Cloaking Device | -7/Data Miner | Free Mni. Smartbomb Launcher | -7/Data Miner | Free Robot Schematics ------------------ S-27 Virus | -7/Data Miner | Free G-50 Soldier | -7/Data Miner | Free L-41 Fighter | -7/Data Miner | Free I-36 Angel | -7/Data Miner | Free Fabricated ------------ Lgt. Armor Plating | x2 | -7/Factory Antimatter Reactor | x2 | -6/Factory | Preloaded Alien Tech Used ----------------- Core Expander Achievements -------------- None Challenges ------------ None Game ------ Seed FlakUltimateModule Manual? 0 Play Time 01:44:18 Cumulative 371.0 hours Start 2021.10.14 @ 11:50:07 End 2021.10.15 @ 00:22:01 Sessions 2 Manual Loads 0 Difficulty Rogue Special Mode None Game No. 386 Rogue 386 Adventurer 0 Explorer 0 Win Type - Total 7 Types 6/0/0/1/0/0/0/0/0 Lore% 79 Gallery% 91 Achievement% 69 Wizard Run 0 Options --------- ASCII 0 Keyboard 0 Movement Mouse Keybinds 1 Fullscreen 2 Font 24/Smallcaps Map View 76x50 Tactical HUD 1 Map Filters NONE Filters NONE Steam 1 RUN: fc1b24e6-5951-4393-b652-b62d9774433b